fUSD/lending_fUSD_20250510
["ID","MTS","AMOUNT","RATE_DAILY","PERIOD"]
[360626212,1746907855702,-432.65211255,0.00019399,2]
[360626213,1746907855711,-593.5,0.00019399,2]
[360626214,1746907855859,-400.0,0.00019399,2]
[360626215,1746907855869,-400.0,0.00019399,2]
[360626216,1746907855879,-400.0,0.00019399,2]
[360626217,1746907855888,-400.0,0.00019399,2]
[360626218,1746907855897,-400.0,0.00019399,2]
[360626219,1746907855907,-400.0,0.00019399,2]
[360626220,1746907855917,-400.0,0.00019399,2]
[360626221,1746907855926,-400.0,0.00019399,2]
[360626222,1746907855940,-391.59460027,0.00019399,2]
[360626223,1746907855949,-450.88,0.00019399,2]
[360626224,1746907855959,-400.0,0.00019399,2]
[360626225,1746907855968,-400.0,0.00019399,2]
[360626226,1746907855977,-400.0,0.00019399,2]
[360626227,1746907855988,-400.0,0.00019399,2]
[360626228,1746907855997,-2547.76,0.00019399,2]
[360626229,1746907856007,-400.0,0.00019399,2]
[360626230,1746907856017,-400.0,0.00019399,2]
[360626231,1746907856027,-400.0,0.00019399,2]
[360626232,1746907856037,-526.33,0.00019399,2]
[360626233,1746907856046,-1320.43,0.00019399,2]
[360626234,1746907856055,-1252.51,0.00019399,2]
[360626235,1746907856064,-400.0,0.00019399,2]
[360626236,1746907856073,-1687.71,0.00019399,2]
[360626237,1746907856082,-400.0,0.00019399,2]
[360626238,1746907856091,-400.0,0.00019399,2]
[360626239,1746907856100,-400.0,0.00019399,2]
[360626240,1746907856111,-400.0,0.00019399,2]
[360626241,1746907856120,-400.0,0.00019399,2]
[360626242,1746907856129,-400.0,0.00019399,2]
[360626243,1746907856139,-400.0,0.00019399,2]
[360626244,1746907856148,-400.0,0.00019399,2]
[360626245,1746907856157,-400.0,0.00019399,2]
[360626246,1746907856167,-400.0,0.00019399,2]
[360626247,1746907856176,-400.0,0.00019399,2]
[360626248,1746907856185,-400.0,0.00019399,2]
[360626249,1746907856194,-406.29,0.00019399,2]
[360626250,1746907856203,-400.0,0.00019399,2]
[360626251,1746907856213,-1440.61,0.00019399,2]
[360626252,1746907856222,-400.0,0.00019399,2]
[360626253,1746907856231,-400.0,0.00019399,2]
[360626254,1746907856242,-400.0,0.00019399,2]
[360626255,1746907856252,-1074.13,0.00019399,2]
[360626256,1746907856262,-357.16,0.00019399,2]
[360626257,1746907856271,-400.0,0.00019399,2]
[360626258,1746907856280,-508.22,0.00019399,2]
[360626259,1746907856290,-400.0,0.00019399,2]
[360626260,1746907856299,-539.56,0.00019399,2]
[360626261,1746907856308,-400.0,0.00019399,2]
[360626262,1746907856317,-478.37157044,0.00019399,2]
[360626263,1746907856327,-445.56,0.00019399,2]
[360626264,1746907856336,-441.03,0.00019399,2]
[360626265,1746907856345,-400.0,0.00019399,2]
[360626266,1746907856354,-38202.65,0.00019399,2]
[360626267,1746907856363,-400.0,0.00019399,2]
[360626268,1746907856372,-400.0,0.00019399,2]
[360626269,1746907856382,-400.0,0.00019399,2]
[360626270,1746907856391,-400.0,0.00019399,2]
[360626271,1746907856400,-400.0,0.00019399,2]
[360626272,1746907856409,-400.0,0.00019399,2]
[360626273,1746907856419,-400.0,0.00019399,2]
[360626274,1746907856429,-1953.88,0.00019399,2]
[360626275,1746907856439,-400.0,0.00019399,2]
[360626276,1746907856448,-400.0,0.00019399,2]
[360626277,1746907856458,-400.0,0.00019399,2]
[360626278,1746907856467,-400.0,0.00019399,2]
[360626279,1746907856476,-500.0,0.00019399,2]
[360626280,1746907856487,-248.37321473,0.00019399,2]
[360626281,1746907856497,-529.33,0.00019399,2]
[360626282,1746907856507,-400.0,0.00019399,2]
[360626283,1746907856516,-495.11,0.00019399,2]
[360626284,1746907856525,-400.0,0.00019399,2]
[360626285,1746907856536,-400.0,0.00019399,2]
[360626286,1746907856545,-400.0,0.00019399,2]
[360626287,1746907856555,-400.0,0.00019399,2]
[360626288,1746907856564,-400.0,0.00019399,2]
[360626289,1746907856573,-481.36,0.00019399,2]
[360626290,1746907856583,-400.0,0.00019399,2]
[360626291,1746907856593,-400.0,0.00019399,2]
[360626292,1746907856602,-495.75,0.00019399,2]
[360626293,1746907856612,-400.0,0.00019399,2]
[360626294,1746907856621,-400.0,0.00019399,2]
[360626295,1746907856630,-400.0,0.00019399,2]
[360626296,1746907856640,-400.0,0.00019399,2]
[360626297,1746907856649,-475.8,0.00019399,2]
[360626298,1746907856657,-400.0,0.00019399,2]
[360626299,1746907856667,-400.0,0.00019399,2]
[360626300,1746907856676,-400.0,0.00019399,2]
[360626301,1746907856685,-343.38923819,0.00019399,2]
[360626302,1746907856695,-400.0,0.00019399,2]
[360626303,1746907856705,-400.0,0.00019399,2]
[360626304,1746907856714,-400.0,0.00019399,2]
[360626305,1746907856723,-490.58,0.00019399,2]
[360626306,1746907856733,-509.11,0.00019399,2]
[360626307,1746907856743,-1326.9,0.00019399,2]
[360626308,1746907856752,-400.0,0.00019399,2]
[360626309,1746907856761,-534.66010619,0.00019399,2]
[360626310,1746907856770,-400.0,0.00019399,2]
[360626311,1746907856779,-191.74593509,0.00019399,2]
[360626312,1746907856788,-400.0,0.00019399,2]
[360626313,1746907856798,-400.0,0.00019399,2]
[360626314,1746907856807,-400.0,0.00019399,2]
[360626315,1746907856817,-400.0,0.00019399,2]
[360626316,1746907856826,-400.0,0.00019399,2]
[360626317,1746907856836,-617.71,0.00019399,2]
[360626318,1746907856845,-436.38,0.00019399,2]
[360626319,1746907856854,-400.0,0.00019399,2]
[360626320,1746907856864,-400.0,0.00019399,2]
[360626321,1746907856873,-400.0,0.00019399,2]
[360626322,1746907856890,-400.0,0.00019399,2]
[360626323,1746907856900,-450.32765963,0.00019399,2]
[360626324,1746907856909,-1341.4,0.00019399,2]
[360626325,1746907856918,-400.0,0.00019399,2]
[360626326,1746907856928,-412.88,0.00019399,2]
[360626327,1746907856941,-400.0,0.00019399,2]
[360626328,1746907856950,-400.0,0.00019399,2]
[360626329,1746907856959,-400.0,0.00019399,2]
[360626330,1746907856968,-400.0,0.00019399,2]
[360626331,1746907856979,-259.82874725,0.00019399,2]
[360626332,1746907856992,-400.0,0.00019399,2]
[360626333,1746907857002,-500.0,0.00019399,2]
[360626334,1746907857013,-400.0,0.00019399,2]
[360626335,1746907857023,-400.0,0.00019399,2]
[360626336,1746907857032,-400.0,0.00019399,2]
[360626337,1746907857042,-1093.73,0.00019399,2]
[360626338,1746907857051,-400.0,0.00019399,2]
[360626339,1746907857061,-400.0,0.00019399,2]
[360626340,1746907857070,-297.14,0.00019399,2]
[360626341,1746907857079,-400.0,0.00019399,2]
[360626342,1746907857088,-1069.79,0.00019399,2]
[360626343,1746907857098,-400.0,0.00019399,2]
[360626344,1746907857107,-400.0,0.00019399,2]
[360626345,1746907857116,-1177.75,0.00019399,2]
[360626346,1746907857125,-400.0,0.00019399,2]
[360626347,1746907857135,-516.44,0.00019399,2]
[360626348,1746907857144,-725.46,0.00019399,2]
[360626349,1746907857153,-400.0,0.00019399,2]
[360626350,1746907857162,-1247.7,0.00019399,2]
[360626351,1746907857172,-400.0,0.00019399,2]
[360626352,1746907857181,-400.0,0.00019399,2]
[360626353,1746907857190,-400.0,0.00019399,2]
[360626354,1746907857200,-340.81,0.00019399,2]
[360626355,1746907857209,-400.0,0.00019399,2]
[360626356,1746907857218,-1000.0,0.00019399,2]
[360626357,1746907857227,-400.0,0.00019399,2]
[360626358,1746907857238,-400.0,0.00019399,2]
[360626359,1746907857248,-400.0,0.00019399,2]
[360626360,1746907857257,-400.0,0.00019399,2]
[360626361,1746907857266,-467.21288994,0.00019399,2]
[360626362,1746907857276,-400.0,0.00019399,2]
[360626363,1746907857285,-400.0,0.00019399,2]
[360626364,1746907857295,-1003.0,0.000194,2]
[360626365,1746907857304,-1000.0,0.000194,2]
[360626366,1746907857313,-1000.0,0.000194,2]
[360626367,1746907857323,-1000.0,0.000194,2]
[360626368,1746907857333,-1000.0,0.000194,2]
[360626369,1746907857343,-1000.0,0.000194,2]
[360626370,1746907857352,-1000.0,0.000194,2]
[360626371,1746907857361,-1000.0,0.000194,2]
[360626372,1746907857370,-869.0,0.000194,3]
[360626373,1746907857379,-1000.0,0.000194,3]
[360626374,1746907857388,-1000.0,0.000194,3]
[360626375,1746907857398,-1000.0,0.000194,3]
[360626376,1746907857407,-1000.0,0.000194,3]
[360626377,1746907857417,-1000.0,0.000194,3]
[360626378,1746907857427,-1000.0,0.000194,3]
[360626379,1746907857437,-1000.0,0.000194,2]
[360626380,1746907857446,-1000.0,0.000194,2]
[360626381,1746907857456,-1000.0,0.000194,2]
[360626382,1746907857466,-1000.0,0.000194,2]
[360626383,1746907857476,-1000.0,0.000194,2]
[360626384,1746907857486,-1000.0,0.000194,2]
[360626385,1746907857495,-1000.0,0.000194,2]
[360626386,1746907857505,-1000.0,0.000194,2]
[360626387,1746907857515,-1000.0,0.000194,2]
[360626388,1746907857524,-1000.0,0.000194,2]
[360626389,1746907857533,-1000.0,0.000194,2]
[360626390,1746907857543,-1045.0,0.000194,2]
[360626391,1746907857552,-1000.0,0.000194,2]
[360626392,1746907857562,-2088.60033777,0.00019437,2]
[360626393,1746907857571,-644.33222888,0.00019437,2]
[360626394,1746907857581,-619.73,0.0001945,2]
[360626395,1746907857590,-588.18,0.0001945,2]
[360626396,1746907857600,-451.73,0.0001945,2]
[360626397,1746907857609,-683.86,0.0001945,2]
[360626398,1746907857618,-400.0,0.0001945,2]
[360626399,1746907857628,-479.65,0.0001945,2]
[360626400,1746907857638,-2702.06,0.0001945,2]
[360626401,1746907857648,-839.34,0.0001945,2]
[360626402,1746907857657,-3450.0,0.0001945,2]
[360626403,1746907857666,-400.0,0.0001945,2]
[360626404,1746907857675,-662.89,0.0001945,2]
[360626405,1746907857686,-3023.47,0.0001945,2]
[360626406,1746907857696,-630.87,0.0001945,2]
[360626407,1746907857705,-400.0,0.0001945,2]
[360626408,1746907857714,-3067.62,0.0001945,2]
[360626409,1746907857724,-439.48,0.0001945,2]
[360626410,1746907857733,-441.92,0.0001945,2]
[360626411,1746907857742,-1886.19,0.0001945,2]
[360626412,1746907857751,-2120.27,0.0001945,2]
[360626413,1746907857760,-400.0,0.0001945,2]
[360626414,1746907857769,-400.0,0.0001945,2]
[360626415,1746907857778,-400.0,0.0001945,2]
[360626416,1746907857787,-400.0,0.0001945,2]
[360626417,1746907857796,-14363.66,0.0001945,2]
[360626418,1746907857806,-400.0,0.0001945,2]
[360626419,1746907857815,-446.17,0.0001945,2]
[360626420,1746907857824,-2075.79,0.0001945,2]
[360626421,1746907857833,-907.82,0.0001945,2]
[360626422,1746907857842,-400.0,0.0001945,2]
[360626423,1746907857851,-400.0,0.0001945,2]
[360626424,1746907857861,-400.0,0.0001945,2]
[360626425,1746907857871,-6645.84,0.0001945,2]
[360626426,1746907857880,-10731.34,0.0001945,2]
[360626427,1746907857890,-400.0,0.0001945,2]
[360626428,1746907857901,-400.0,0.0001945,2]
[360626429,1746907857910,-400.0,0.0001945,2]
[360626430,1746907857919,-774.84,0.0001945,2]
[360626431,1746907857929,-4281.37,0.0001945,2]
[360626432,1746907857941,-400.0,0.0001945,2]
[360626433,1746907857951,-400.0,0.0001945,2]
[360626434,1746907857960,-7215.04,0.0001945,2]
[360626435,1746907857969,-400.0,0.0001945,2]
[360626436,1746907857979,-604.11,0.0001945,2]
[360626437,1746907857990,-867.97,0.0001945,2]
[360626438,1746907858000,-400.0,0.0001945,2]
[360626439,1746907858010,-521.03,0.0001945,2]
[360626440,1746907858020,-584.41,0.0001945,2]
[360626441,1746907858029,-413.41,0.0001945,2]
[360626442,1746907858039,-400.0,0.0001945,2]
[360626443,1746907858048,-648.44,0.0001945,2]
[360626444,1746907858057,-1513.56,0.0001945,2]
[360626445,1746907858066,-400.0,0.0001945,2]
[360626446,1746907858076,-1099.36,0.0001945,2]
[360626447,1746907858085,-400.0,0.0001945,2]
[360626448,1746907858094,-1000.44,0.0001945,2]
[360626449,1746907858103,-515.41,0.0001945,2]
[360626450,1746907858112,-332.89235484,0.0001945,2]
[360626451,1746907858121,-368.23362405,0.0001945,2]
[360626452,1746907858131,-420.18,0.0001945,2]
[360626453,1746907858140,-998.85,0.0001945,2]
[360626454,1746907858149,-172.47778675,0.00019452,2]
[360626455,1746907858158,-300.0,0.00019488,2]
[360626456,1746907858167,-166.10629675,0.00019489,2]
[360626457,1746907858176,-165.72092318,0.00019489,2]
[360626458,1746907858186,-175.86519684,0.00019493,2]
[360626459,1746907858195,-153.0,0.00019522,2]
[360626460,1746907858205,-800.717,0.00019522,2]
[360626461,1746907858214,-5937.0,0.00019522,2]
[360626462,1746907858223,-2088.60033777,0.00019526,2]
[360626463,1746907858234,-644.33222888,0.00019526,2]
[360626464,1746907858244,-452.13248172,0.00019533,2]
[360626465,1746907858253,-172.47778675,0.00019534,2]
[360626466,1746907858263,-6372.7351,0.00019543,2]
[360626467,1746907858272,-500.0,0.00019589,2]
[360626468,1746907858282,-2088.60033777,0.00019616,2]
[360626469,1746907858291,-644.33222888,0.00019616,2]
[360626470,1746907858301,-172.47778675,0.00019616,2]
[360626471,1746907858311,-191.68560292,0.0001964,2]
[360626472,1746907858320,-175.24407999,0.00019666,2]
[360626473,1746907858330,-172.47778675,0.00019699,2]
[360626474,1746907858339,-154.614,0.00019704,2]
[360626475,1746907858349,-150.0,0.00019704,2]
[360626476,1746907858359,-150.0,0.00019704,2]
[360626477,1746907858368,-346.645,0.00019704,2]
[360626478,1746907858378,-798.0,0.00019704,2]
[360626479,1746907858518,-296.9,0.00019704,2]
[360626480,1746907858527,-779.217,0.00019704,2]
[360626481,1746907858537,-552.0,0.00019704,2]
[360626482,1746907858546,-151.0,0.00019704,2]
[360626483,1746907858555,-2088.60033777,0.00019706,2]
[360626484,1746907858565,-156.587,0.00019726,2]
[360626485,1746907858574,-170.64766694,0.00019731,2]
[360626486,1746907858584,-250.0,0.00019732,2]
[360626487,1746907858593,-400.0,0.00019739,2]
[360626488,1746907858602,-400.0,0.00019739,2]
[360626489,1746907858611,-400.0,0.00019739,2]
[360626490,1746907858620,-400.0,0.00019739,2]
[360626491,1746907858630,-400.0,0.00019739,2]
[360626492,1746907858639,-400.0,0.00019739,2]
[360626493,1746907858648,-400.0,0.00019739,2]
[360626494,1746907858658,-987.59,0.00019739,2]
[360626495,1746907858667,-2001.0,0.00019739,2]
[360626496,1746907858677,-400.0,0.00019739,2]
[360626497,1746907858687,-400.0,0.00019739,2]
[360626498,1746907858696,-400.0,0.00019739,2]
[360626499,1746907858705,-503.74,0.00019739,2]
[360626500,1746907858715,-400.0,0.00019739,2]
[360626501,1746907858724,-2191.39,0.00019739,2]
[360626502,1746907858735,-400.0,0.00019739,2]
[360626503,1746907858744,-400.0,0.00019739,2]
[360626504,1746907858754,-400.0,0.0001974,2]
[360626505,1746907858763,-400.0,0.0001974,2]
[360626506,1746907858772,-400.0,0.0001974,2]
[360626507,1746907858782,-400.0,0.0001974,2]
[360626508,1746907858791,-400.0,0.0001974,2]
[360626509,1746907858800,-400.0,0.0001974,2]
[360626510,1746907858809,-400.0,0.0001974,2]
[360626511,1746907858819,-451.73,0.0001974,2]
[360626512,1746907858827,-400.0,0.0001974,2]
[360626513,1746907858837,-479.65,0.0001974,2]
[360626514,1746907858846,-839.34,0.0001974,2]
[360626515,1746907858856,-400.0,0.0001974,2]
[360626516,1746907858868,-400.0,0.0001974,2]
[360626517,1746907858877,-630.87,0.0001974,2]
[360626518,1746907858887,-400.0,0.0001974,2]
[360626519,1746907858896,-439.48,0.0001974,2]
[360626520,1746907858905,-400.0,0.0001974,2]
[360626521,1746907858914,-500.0,0.0001974,2]
[360626522,1746907858923,-400.0,0.0001974,2]
[360626523,1746907858933,-400.0,0.0001974,2]
[360626524,1746907858946,-400.0,0.0001974,2]
[360626525,1746907858955,-400.0,0.0001974,2]
[360626526,1746907858964,-400.0,0.0001974,2]
[360626527,1746907858974,-400.0,0.0001974,2]
[360626528,1746907858983,-400.0,0.0001974,2]
[360626529,1746907858993,-400.0,0.0001974,2]
[360626530,1746907859002,-400.0,0.0001974,2]
[360626531,1746907859012,-400.0,0.0001974,2]
[360626532,1746907859021,-774.84,0.0001974,2]
[360626533,1746907859031,-400.0,0.0001974,2]
[360626534,1746907859041,-400.0,0.0001974,2]
[360626535,1746907859051,-400.0,0.0001974,2]
[360626536,1746907859060,-987.59,0.0001974,2]
[360626537,1746907859069,-604.11,0.0001974,2]
[360626538,1746907859079,-867.97,0.0001974,2]
[360626539,1746907859088,-2001.0,0.0001974,2]
[360626540,1746907859097,-400.0,0.0001974,2]
[360626541,1746907859107,-521.03,0.0001974,2]
[360626542,1746907859116,-584.41,0.0001974,2]
[360626543,1746907859126,-400.0,0.0001974,2]
[360626544,1746907859135,-194.360305,0.0001974,2]
[360626545,1746907859145,-400.0,0.0001974,2]
[360626546,1746907859154,-400.0,0.0001974,2]
[360626547,1746907859163,-400.0,0.0001974,2]
[360626548,1746907859172,-1513.56,0.0001974,2]
[360626549,1746907859181,-503.74,0.0001974,2]
[360626550,1746907859191,-400.0,0.0001974,2]
[360626551,1746907859200,-151.0,0.0001974,2]
[360626552,1746907859208,-400.0,0.0001974,2]
[360626553,1746907859218,-400.0,0.0001974,2]
[360626554,1746907859227,-2191.39,0.0001974,2]
[360626555,1746907859237,-200.90904522,0.0001974,2]
[360626556,1746907859247,-151.0,0.0001974,2]
[360626557,1746907859256,-151.0,0.0001974,2]
[360626558,1746907859265,-420.18,0.0001974,2]
[360626559,1746907859274,-400.0,0.0001974,2]
[360626560,1746907859283,-151.0,0.0001974,2]
[360626561,1746907859293,-998.85,0.0001974,2]
[360626562,1746907859302,-400.0,0.0001974,2]
[360626563,1746907859312,-400.0,0.00019741,2]
[360626564,1746907859322,-400.0,0.00019741,2]
[360626565,1746907859331,-400.0,0.00019741,2]
[360626566,1746907859340,-500.0,0.00019741,2]
[360626567,1746907859350,-400.0,0.00019741,2]
[360626568,1746907859359,-400.0,0.00019741,2]
[360626569,1746907859369,-400.0,0.00019741,2]
[360626570,1746907859378,-400.0,0.00019741,2]
[360626571,1746907859388,-253.86459601,0.00019741,2]
[360626572,1746907859398,-500.0,0.00019741,2]
[360626573,1746907859407,-400.0,0.00019741,2]
[360626574,1746907859417,-400.0,0.00019741,2]
[360626575,1746907859428,-154.59325211,0.00019741,2]
[360626576,1746907859447,-400.0,0.00019741,2]
[360626577,1746907859461,-400.0,0.00019741,2]
[360626578,1746907859473,-472.22015068,0.00019741,2]
[360626579,1746907859482,-400.0,0.00019741,2]
[360626580,1746907859493,-400.0,0.00019741,2]
[360626581,1746907859502,-400.0,0.00019741,2]
[360626582,1746907859511,-400.0,0.00019741,2]
[360626583,1746907859520,-609.8,0.00019741,2]
[360626584,1746907859530,-400.0,0.00019741,2]
[360626585,1746907859539,-400.0,0.00019741,2]
[360626586,1746907859549,-400.0,0.00019741,2]
[360626587,1746907859558,-400.0,0.00019741,2]
[360626588,1746907859568,-400.0,0.00019741,2]
[360626589,1746907859577,-549.64209061,0.00019741,2]
[360626590,1746907859586,-400.0,0.00019741,2]
[360626591,1746907859595,-400.0,0.00019741,2]
[360626592,1746907859604,-442.71,0.00019741,2]
[360626593,1746907859613,-281.02728098,0.00019741,2]
[360626594,1746907859622,-400.0,0.00019741,2]
[360626595,1746907859631,-400.0,0.00019741,2]
[360626596,1746907859641,-400.0,0.00019741,2]
[360626597,1746907859651,-287.11061395,0.00019741,2]
[360626598,1746907859660,-1254.67,0.00019741,2]
[360626599,1746907859670,-400.0,0.00019741,2]
[360626600,1746907859679,-400.0,0.00019741,2]
[360626601,1746907859688,-400.0,0.00019741,2]
[360626602,1746907859697,-400.0,0.00019741,2]
[360626603,1746907859706,-400.0,0.00019741,2]
[360626604,1746907859716,-438.72,0.00019741,2]
[360626605,1746907859725,-479.24942117,0.00019741,2]
[360626606,1746907859734,-406.2190862,0.00019741,2]
[360626607,1746907859745,-400.0,0.00019741,2]
[360626608,1746907859754,-938.98,0.00019741,2]
[360626609,1746907859763,-1090.61,0.00019741,2]
[360626610,1746907859772,-400.0,0.00019741,2]
[360626611,1746907859781,-400.0,0.00019741,2]
[360626612,1746907859791,-400.0,0.00019741,2]
[360626613,1746907859800,-400.0,0.00019741,2]
[360626614,1746907859809,-313.43939232,0.00019741,2]
[360626615,1746907859818,-400.0,0.00019741,2]
[360626616,1746907859828,-400.0,0.00019741,2]
[360626617,1746907859837,-400.0,0.00019741,2]
[360626618,1746907859846,-400.0,0.00019741,2]
[360626619,1746907859855,-400.0,0.00019741,2]
[360626620,1746907859865,-400.0,0.00019741,2]
[360626621,1746907859874,-400.0,0.00019741,2]
[360626622,1746907859883,-400.0,0.00019741,2]
[360626623,1746907859894,-403.3861194,0.00019741,2]
[360626624,1746907859903,-400.0,0.00019741,2]
[360626625,1746907859912,-400.0,0.00019741,2]
[360626626,1746907859922,-400.0,0.00019741,2]
[360626627,1746907859932,-400.0,0.00019741,2]
[360626628,1746907859944,-503.59687382,0.00019741,2]
[360626629,1746907859954,-474.4,0.00019741,2]
[360626630,1746907859964,-400.0,0.00019741,2]
[360626631,1746907859974,-400.0,0.00019741,2]
[360626632,1746907859985,-400.0,0.00019741,2]
[360626633,1746907859997,-400.0,0.00019741,2]
[360626634,1746907860006,-400.0,0.00019741,2]
[360626635,1746907860016,-400.0,0.00019741,2]
[360626636,1746907860027,-400.0,0.00019741,2]
[360626637,1746907860036,-500.0,0.00019741,2]
[360626638,1746907860045,-400.0,0.00019741,2]
[360626639,1746907860055,-400.0,0.00019741,2]
[360626640,1746907860064,-476.0,0.00019741,2]
[360626641,1746907860074,-455.48,0.00019741,2]
[360626642,1746907860084,-400.0,0.00019741,2]
[360626643,1746907860094,-400.0,0.00019741,2]
[360626644,1746907860103,-400.0,0.00019741,2]
[360626645,1746907860113,-400.0,0.00019741,2]
[360626646,1746907860122,-447.37324837,0.00019741,2]
[360626647,1746907860131,-400.0,0.00019741,2]
[360626648,1746907860141,-400.0,0.00019741,2]
[360626649,1746907860151,-400.0,0.00019741,2]
[360626650,1746907860160,-400.0,0.00019741,2]
[360626651,1746907860169,-400.0,0.00019741,2]
[360626652,1746907860179,-406.37149342,0.00019741,2]
[360626653,1746907860188,-400.0,0.00019741,2]
[360626654,1746907860197,-400.0,0.00019741,2]
[360626655,1746907860207,-400.0,0.00019741,2]
[360626656,1746907860216,-400.0,0.00019741,2]
[360626657,1746907860226,-400.0,0.00019741,2]
[360626658,1746907860235,-402.62104245,0.00019741,2]
[360626659,1746907860246,-400.0,0.00019741,2]
[360626660,1746907860256,-400.0,0.00019741,2]
[360626661,1746907860266,-400.0,0.00019741,2]
[360626662,1746907860275,-400.0,0.00019741,2]
[360626663,1746907860285,-1243.67,0.00019741,2]
[360626664,1746907860296,-400.0,0.00019741,2]
[360626665,1746907860305,-400.0,0.00019741,2]
[360626666,1746907860315,-300.0,0.00019741,2]
[360626667,1746907860324,-400.0,0.00019741,2]
[360626668,1746907860334,-400.0,0.00019741,2]
[360626669,1746907860343,-400.0,0.00019741,2]
[360626670,1746907860353,-400.0,0.00019741,2]
[360626671,1746907860362,-400.0,0.00019741,2]
[360626672,1746907860373,-400.0,0.00019741,2]
[360626673,1746907860382,-400.0,0.00019741,2]
[360626674,1746907860391,-400.0,0.00019741,2]
[360626675,1746907860401,-400.0,0.00019741,2]
[360626676,1746907860411,-456.44317151,0.00019741,2]
[360626677,1746907860421,-400.0,0.00019741,2]
[360626678,1746907860430,-298.85933837,0.00019741,2]
[360626679,1746907860440,-400.0,0.00019741,2]
[360626680,1746907860449,-400.0,0.00019741,2]
[360626681,1746907860459,-400.0,0.00019741,2]
[360626682,1746907860468,-400.0,0.00019741,2]
[360626683,1746907860478,-400.0,0.00019741,2]
[360626684,1746907860487,-400.0,0.00019741,2]
[360626685,1746907860497,-408.23,0.00019741,2]
[360626686,1746907860506,-400.0,0.00019741,2]
[360626687,1746907860516,-1258.47,0.00019741,2]
[360626688,1746907860525,-400.0,0.00019741,2]
[360626689,1746907860535,-400.0,0.00019741,2]
[360626690,1746907860544,-502.12,0.00019741,2]
[360626691,1746907860554,-400.0,0.00019741,2]
[360626692,1746907860563,-400.0,0.00019741,2]
[360626693,1746907860573,-400.0,0.00019741,2]
[360626694,1746907860582,-400.0,0.00019741,2]
[360626695,1746907860591,-400.0,0.00019741,2]
[360626696,1746907860600,-400.0,0.00019741,2]
[360626697,1746907860609,-400.0,0.00019741,2]
[360626698,1746907860619,-400.0,0.00019741,2]
[360626699,1746907860628,-400.0,0.00019741,2]
[360626700,1746907860637,-400.0,0.00019741,2]
[360626701,1746907860647,-400.0,0.00019741,2]
[360626702,1746907860656,-400.0,0.00019741,2]
[360626703,1746907860666,-400.0,0.00019741,2]
[360626704,1746907860675,-400.0,0.00019741,2]
[360626705,1746907860686,-400.0,0.00019741,2]
[360626706,1746907860695,-400.0,0.00019741,2]
[360626707,1746907860705,-500.0,0.00019741,2]
[360626708,1746907860714,-400.0,0.00019741,2]
[360626709,1746907860723,-400.0,0.00019741,2]
[360626710,1746907860732,-400.0,0.00019741,2]
[360626711,1746907860742,-400.0,0.00019741,2]